bitfinex-derivatives/quotes_ETHF0:USTF0_20250420
["timestamp","ask_amount","ask_price","bid_price","bid_amount"]
[1745128473011,2.895,1612.5,1612.4,6.2490429]
[1745128473310,2.895,1612.5,1612.4,5.4358]
[1745128474304,11.79,1612.5,1612.4,5.00996]
[1745128474510,14.9978,1612.5,1612.4,1.80216]
[1745128476404,16.609,1612.5,1612.4,1.80216]
[1745128481113,11.609,1612.5,1612.4,1.80216]
[1745128491119,11.609,1612.5,1612.4,3.51946]
[1745128491617,11.609,1612.5,1612.4,4.38166]
[1745128495221,11.609,1612.5,1612.4,3.51946]
[1745128501941,8.4012,1612.5,1612.4,3.51946]
[1745128505441,8.4012,1612.5,1612.4,1.80216]
[1745128507946,8.4012,1612.5,1612.4,3.54326]
[1745128511646,8.4012,1612.5,1612.4,1.80216]
[1745128522855,11.609,1612.5,1612.4,1.80216]
[1745128523442,16.609,1612.5,1612.4,1.80216]
[1745128523963,11.609,1612.5,1612.4,1.80216]
[1745128524456,21.89080332,1612.5,1612.4,1.80216]
[1745128524659,21.89080332,1612.5,1612.4,1e-05]
[1745128529954,26.89080332,1612.5,1612.4,1e-05]
[1745128530362,26.99511572,1612.5,1612.4,1e-05]
[1745128530563,1.24071,1612.1,1612.0,1.6086]
[1745128530861,5.13671,1612.1,1612.0,1.6086]
[1745128531056,5.13671,1612.1,1612.0,3.8366]
[1745128531468,6.83011,1612.1,1612.0,3.8366]
[1745128537863,5.13671,1612.1,1612.0,3.8366]
[1745128539573,5.62000562,1612.1,1612.0,3.8366]
[1745128539776,7.22610562,1612.1,1612.0,3.8366]
[1745128541875,10.43390562,1612.1,1612.0,3.8366]
[1745128542375,10.43390562,1612.1,1612.0,2.228]
[1745128550680,9.95061,1612.1,1612.0,2.228]
[1745128551184,9.95061,1612.1,1612.0,3.0568]
[1745128552678,10.44748698,1612.1,1612.0,3.0568]
[1745128554382,1.24079,1612.0,1611.9,1.6047]
[1745128555184,1.24079,1612.0,1611.9,3.8327]
[1745128556489,1.24079,1612.0,1611.9,0.88614]
[1745128556681,4.55329,1612.0,1611.9,0.88614]
[1745128556880,1.24094,1611.8,1611.7,1.6471]
[1745128557081,5.14694,1611.8,1611.7,1.6471]
[1745128557985,5.98024,1611.8,1611.7,1.6471]
[1745128558185,5.98024,1611.8,1611.7,3.8751]
[1745128559779,7.69104,1611.8,1611.7,3.8751]
[1745128564391,5.14694,1611.8,1611.7,3.8751]
[1745128564590,5.14694,1611.8,1611.7,4.7541]
[1745128566291,3.59880698,1612.1,1611.7,4.7541]
[1745128566292,7.1138,1612.1,1611.7,10.56702433]
[1745128566489,1.24087,1611.9,1611.8,5.41172433]
[1745128566690,1.24087,1611.9,1611.8,3.67092433]
[1745128566890,1.24087,1611.9,1611.8,1.67092433]
[1745128567694,1.24087,1611.9,1611.8,1.67094323]
[1745128568495,1.24087,1611.9,1611.8,0.858]
[1745128569096,4.44867,1611.9,1611.8,0.858]
[1745128571298,1.24094,1611.8,1611.7,3.107]
[1745128571604,5.14694,1611.8,1611.7,4.79153473]
[1745128572297,5.14694,1611.8,1611.7,3.9784]
[1745128572894,5.14694,1611.8,1611.7,3.107]
[1745128573096,7.62854,1611.8,1611.7,3.107]
[1745128573294,8.49484,1611.8,1611.7,3.107]
[1745128580004,5.14694,1611.8,1611.7,3.107]
[1745128580306,5.14694,1611.8,1611.7,3.9564]
[1745128586708,5.14694,1611.8,1611.7,5.645]
[1745128590713,5.97614,1611.8,1611.7,5.645]
[1745128591515,7.72684,1611.8,1611.7,5.645]
[1745128594915,8.59614,1611.8,1611.7,4.7956]
[1745128608120,8.59614,1611.8,1611.7,5.60974165]
[1745128608325,8.59614,1611.8,1611.7,5.60974012]
[1745128608825,8.59614,1611.8,1611.7,5.60972799]
[1745128609322,5.14694,1611.8,1611.7,5.60972799]
[1745128610721,5.14694,1611.8,1611.7,5.60955708]
[1745128612928,5.14694,1611.8,1611.7,5.60941929]
[1745128614430,5.14694,1611.8,1611.7,5.60936361]
[1745128616223,5.14694,1611.8,1611.7,4.7956]
[1745128616530,5.14694,1611.8,1611.7,5.60928988]
[1745128618229,5.14694,1611.8,1611.7,5.60922922]
[1745128620735,5.14694,1611.8,1611.7,1.76457922]
[1745128621041,1.2411,1611.6,1611.5,5.852]
[1745128621236,1.2411,1611.6,1611.5,2.48200553]
[1745128621541,1.2411,1611.6,1611.5,1.6684]
[1745128621738,3.7341,1611.6,1611.5,1.6684]
[1745128622142,1.24117,1611.5,1611.4,8.23323533]
[1745128622437,6.81277,1611.5,1611.4,8.23323533]
[1745128622639,6.81277,1611.5,1611.4,9.90163533]
[1745128623133,6.81277,1611.5,1611.4,12.12963533]
[1745128625639,5.14417,1611.5,1611.4,12.12963533]
[1745128626743,5.14417,1611.5,1611.4,3.8964]
[1745128626943,6.79987,1611.5,1611.4,3.8964]
[1745128627332,6.79987,1611.5,1611.4,7.1042]
[1745128629249,5.14417,1611.5,1611.4,7.1042]
[1745128630251,6.77677,1611.5,1611.4,7.1042]
[1745128634962,6.77677,1611.5,1611.4,5.4358]
[1745128636960,6.77677,1611.5,1611.4,2.228]
[1745128637456,6.77677,1611.5,1611.4,3.8532]
[1745128643566,7.62217,1611.5,1611.4,3.8532]
[1745128645372,7.62217,1611.5,1611.4,4.7216]
[1745128650871,7.62217,1611.5,1611.4,2.228]
[1745128652571,7.62217,1611.5,1611.4,3.8941]
[1745128655463,5.14417,1611.5,1611.4,3.8941]
[1745128655673,5.14417,1611.5,1611.4,5.5368]
[1745128656571,6.90147,1611.5,1611.4,5.5368]
[1745128657075,6.90147,1611.5,1611.4,4.7392]
[1745128657275,7.71927,1611.5,1611.4,4.7392]
[1745128665084,5.14417,1611.5,1611.4,4.7392]
[1745128667877,6.78947,1611.5,1611.4,4.7392]
[1745128671180,7.64277,1611.5,1611.4,4.7392]
[1745128672181,12.64277,1611.5,1611.4,2.228]
[1745128672583,7.64277,1611.5,1611.4,2.228]
[1745128673884,10.85057,1611.5,1611.4,2.228]
[1745128681491,7.64077,1611.5,1611.4,2.228]
[1745128698704,7.64077,1611.5,1611.4,0.90822]
[1745128698905,1.24125,1611.4,1611.3,1.6515]
[1745128699204,6.89295,1611.4,1611.3,1.6515]
[1745128703100,6.89295,1611.4,1611.2,1.6823]
[1745128703101,1.24156,1611.0,1610.9,7.852]
[1745128703405,1.24156,1611.0,1610.9,1.6861]
[1745128704602,1.24171,1610.8,1610.7,8.23323533]
[1745128704796,1.24171,1610.8,1610.7,4.44594533]
[1745128704797,8.35451,1610.8,1610.7,4.44594533]
[1745128705100,10.58251,1610.8,1610.7,0.15320533]
[1745128705304,1.24179,1610.7,1610.6,9.148773]
[1745128705600,1.24179,1610.7,1610.6,4.006253]
[1745128705601,2.91489,1610.7,1610.6,4.006253]
[1745128705792,7.91489,1610.7,1610.6,0.69339999]
[1745128706000,1.24187,1610.6,1610.5,12.48945347]
[1745128706303,13.11147,1610.6,1610.5,7.65753629]
[1745128706605,14.97431,1610.6,1610.2,1.736]
[1745128706795,4.4499,1610.3,1610.2,1.736]
[1745128707305,8.3549,1610.3,1610.2,3.964]
[1745128707807,8.3549,1610.3,1610.2,4.8029]
[1745128709302,4.4499,1610.3,1610.2,4.8029]
[1745128709507,1.7537,1610.4,1610.2,4.8029]
[1745128709508,5.14805,1610.4,1610.2,4.8029]
[1745128709803,3.906,1610.4,1610.3,1.7239]
[1745128710001,5.14802,1610.4,1610.3,1.7239]
[1745128712311,8.01557911,1610.6,1610.4,1.242]
[1745128712509,9.25744911,1610.6,1610.5,4.43]
[1745128713111,9.25744911,1610.6,1610.5,6.658]
[1745128714211,6.85347,1610.6,1610.5,6.658]
[1745128715808,8.99907911,1610.9,1610.5,6.658]
[1745128716113,1.24179,1610.7,1610.6,1.7146]
[1745128719027,2.91689,1610.7,1610.6,1.7146]
[1745128726213,1.24187,1610.6,1610.5,3.0285]
[1745128726412,3.76037,1610.6,1610.5,6.6305]
[1745128729715,3.76037,1610.6,1610.5,5.83]
[1745128735325,3.76037,1610.6,1610.5,4.228]
[1745128735520,3.76037,1610.6,1610.5,2.228]
[1745128735723,3.76037,1610.6,1610.5,0.86746]
[1745128737220,1.24202,1610.4,1610.3,1.7517]
[1745128737519,5.19402,1610.4,1610.3,3.7517]
[1745128737920,6.81882,1610.4,1610.3,3.7517]
[1745128740227,3.2078,1610.7,1610.3,8.7517]
[1745128740428,1.24191,1610.6,1610.4,6.9327]
[1745128740727,1.24191,1610.6,1610.5,2.5412]
[1745128741120,1.24191,1610.6,1610.5,4.7692]
[1745128741326,1.24191,1610.6,1610.5,3.9107]
[1745128741628,2.91501,1610.6,1610.5,3.9107]
[1745128744129,7.91501,1610.6,1610.5,0.88595]
[1745128744333,1.24218,1610.2,1610.1,5.852]
[1745128744631,5.19418,1610.2,1610.1,2.5231]
[1745128745227,6.80588,1610.2,1610.1,2.5231]
[1745128745934,1.24225,1610.1,1610.0,7.0929]
[1745128746231,2.96715,1610.1,1610.0,5.2078]
[1745128746630,2.96715,1610.1,1610.0,2.0]
[1745128747635,3.76725,1610.1,1610.0,2.0]
[1745128748726,2.96715,1610.1,1610.0,3.6146]
[1745128749143,2.96715,1610.1,1610.0,5.8426]
[1745128756241,1.24225,1610.1,1610.0,17.93691]
[1745128756440,1.24225,1610.1,1610.0,16.81021]
[1745128756643,1.24225,1610.1,1610.0,15.5679]
[1745128757247,1.24225,1610.1,1610.0,10.5679]
[1745128760855,1.24225,1610.1,1610.0,4.7159]
[1745128763051,1.24225,1610.1,1610.0,7.9237]
[1745128764656,1.24225,1610.1,1610.0,9.16603]
[1745128767464,4.10957911,1610.4,1610.0,12.9237]
[1745128767671,1.2421,1610.3,1610.2,4.44993]
[1745128768158,1.2421,1610.3,1610.2,6.67793]
[1745128768863,1.2421,1610.3,1610.2,5.4358]
[1745128770061,1.2421,1610.3,1610.2,7.141]
[1745128772466,1.2421,1610.3,1610.2,12.993]
[1745128774563,1.2421,1610.3,1610.2,9.7852]
[1745128774760,1.2421,1610.3,1610.2,12.993]
[1745128775753,1.2421,1610.3,1610.2,14.23518]
[1745128779564,1.2421,1610.3,1610.2,11.02738]
[1745128779861,1.2421,1610.3,1610.2,14.23518]
[1745128780470,1.2421,1610.3,1610.2,11.02738]
[1745128780666,1.2421,1610.3,1610.2,14.23518]
[1745128782166,1.2421,1610.3,1610.2,15.04068]
[1745128783267,2.5521,1610.4,1610.3,1.2421]
[1745128783468,2.5521,1610.4,1610.3,2.9811]
[1745128783664,2.5521,1610.4,1610.3,1.739]
[1745128783665,3.79412,1610.4,1610.3,1.739]
[1745128783970,3.79412,1610.4,1610.3,2.9811]
[1745128784269,3.79412,1610.4,1610.3,1.739]
[1745128784970,3.79412,1610.4,1610.3,6.9468]
[1745128785971,3.79412,1610.4,1610.3,5.2078]
[1745128786971,3.79412,1610.4,1610.3,6.4499]
[1745128787169,3.79412,1610.4,1610.3,8.0851]
[1745128787672,3.79412,1610.4,1610.3,6.843]
[1745128787973,3.79412,1610.4,1610.3,5.2078]
[1745128791074,3.79412,1610.4,1610.3,2.0]
[1745128791372,3.79412,1610.4,1610.3,5.2078]
[1745128791575,3.79412,1610.4,1610.3,2.0]
[1745128791874,3.79412,1610.4,1610.3,5.2078]
[1745128798982,1.2421,1610.3,1610.2,11.2878]
[1745128799278,3.6557,1610.3,1610.2,11.0598]
[1745128800077,3.6557,1610.3,1610.2,13.2878]
[1745128800279,3.6557,1610.3,1610.2,7.4358]
[1745128801379,6.8635,1610.3,1610.2,2.228]
[1745128802075,1.24233,1610.0,1609.9,5.852]
[1745128802382,1.24233,1610.0,1609.9,7.852]
[1745128802980,2.87133,1610.0,1609.9,7.852]
[1745128803375,2.87133,1610.0,1609.9,2.0]
[1745128803576,1.24248,1609.8,1609.7,22.13590988]
[1745128803776,1.24248,1609.8,1609.7,18.17590988]
[1745128803975,0.8341,1610.1,1609.8,2.0]
[1745128804183,3.68838,1610.1,1609.9,4.45016]
[1745128804386,3.68838,1610.1,1610.0,1.7003]
[1745128804679,3.68838,1610.1,1610.0,2.0]
[1745128805079,3.68838,1610.1,1610.0,4.228]
[1745128805783,7.79795911,1610.1,1610.0,4.228]
[1745128807579,7.79795911,1610.1,1610.0,2.228]
[1745128808086,1.24233,1610.0,1609.9,3.2078]
[1745128808271,3.76933,1610.0,1609.9,3.2078]
[1745128810275,3.76933,1610.0,1609.9,6.2492]
[1745128815483,3.76933,1610.0,1609.9,5.4358]
[1745128819692,3.76933,1610.0,1609.9,8.2282]
[1745128819894,2.95763,1610.0,1609.9,9.9123]
[1745128820897,1.24233,1610.0,1609.9,9.9123]
[1745128821096,1.24233,1610.0,1609.9,7.9123]
[1745128825098,0.8341,1610.1,1609.9,7.9123]
[1745128825302,2.07635,1610.1,1610.0,1.7433]
[1745128826005,2.07635,1610.1,1610.0,4.9511]
[1745128826202,2.07635,1610.1,1610.0,7.1791]
[1745128826705,2.07635,1610.1,1610.0,9.1791]
[1745128827901,3.69205,1610.1,1610.0,9.1791]
[1745128831608,3.69205,1610.1,1610.0,5.9713]
[1745128831800,3.69205,1610.1,1610.0,9.1791]
[1745128833108,3.69205,1610.1,1610.0,5.9713]
[1745128833299,3.69205,1610.1,1610.0,9.1791]
[1745128834709,3.69205,1610.1,1610.0,5.9713]
[1745128834911,3.69205,1610.1,1610.0,9.1791]
[1745128835612,3.69205,1610.1,1610.0,5.9713]
[1745128835913,3.69205,1610.1,1610.0,9.1791]
[1745128836311,3.69205,1610.1,1610.0,7.4358]
[1745128837413,3.69205,1610.1,1610.0,4.228]
[1745128838610,3.69205,1610.1,1610.0,2.228]
[1745128839304,1.24233,1610.0,1609.9,0.7924]
[1745128839511,3.72243,1610.0,1609.9,0.7924]
[1745128840113,3.72243,1610.0,1609.9,3.0204]
[1745128840815,3.72243,1610.0,1609.9,4.6598]
[1745128845714,2.85153,1610.0,1609.9,4.6598]
[1745128845917,0.8341,1610.1,1609.9,6.6598]
[1745128846216,2.07642,1610.1,1610.0,6.822]
[1745128846409,2.07642,1610.1,1610.0,7.6935]
[1745128847019,6.18599911,1610.1,1610.0,7.6935]
[1745128847223,6.18599911,1610.1,1610.0,9.05]
[1745128847522,7.86419911,1610.1,1610.0,9.05]
[1745128848418,5.35189911,1610.1,1610.0,9.05]
[1745128848813,5.35189911,1610.1,1610.0,9.9215]
[1745128849714,6.95949911,1610.1,1610.0,9.9215]
[1745128850019,6.95949911,1610.1,1610.0,9.05]
[1745128850818,2.84992,1610.1,1610.0,9.05]
[1745128855828,1.24225,1610.1,1610.0,9.05]
[1745128856022,1.24225,1610.1,1610.0,9.8994]
[1745128856816,1.24225,1610.1,1610.0,9.05]
[1745128857019,3.86135,1610.1,1610.0,9.05]
[1745128857232,3.86135,1610.1,1610.0,5.8422]
[1745128857728,3.86135,1610.1,1610.0,9.05]
[1745128859428,7.97092911,1610.1,1610.0,9.05]
[1745128860131,7.97092911,1610.1,1610.0,6.822]
[1745128861229,7.97092911,1610.1,1610.0,9.05]
[1745128862925,7.97092911,1610.1,1610.0,7.4358]
[1745128863628,7.97092911,1610.1,1610.0,5.4358]
[1745128864331,7.97092911,1610.1,1609.9,0.7924]
[1745128864332,1.24233,1610.0,1609.9,4.0002]
[1745128864524,3.83003,1610.0,1609.9,4.0002]
[1745128865231,3.83003,1610.0,1609.9,6.2282]
[1745128865823,3.83003,1610.0,1609.9,5.4358]
[1745128869633,3.83003,1610.0,1609.9,2.228]
[1745128870224,1.24248,1609.8,1609.7,9.0598]
[1745128870935,2.92218,1609.8,1609.7,3.2078]
[1745128871129,2.92218,1609.8,1609.7,5.4358]
[1745128872135,7.92218,1609.8,1609.7,2.228]
[1745128873241,1.24264,1609.6,1609.5,23.9265281]
[1745128873830,2.89744,1609.6,1609.5,23.9265281]
[1745128874133,2.89744,1609.6,1609.5,26.1545281]
[1745128874529,2.89744,1609.6,1609.5,27.0194281]
[1745128874939,2.89744,1609.6,1609.5,26.1545281]
[1745128876539,1.6548,1609.6,1609.5,26.1545281]
[1745128876730,1.6548,1609.6,1609.5,5.4358]
[1745128876930,1.6548,1609.6,1609.5,6.3007]
[1745128877140,1.6548,1609.6,1609.5,7.54342]
[1745128877340,1.6548,1609.6,1609.5,6.3007]
[1745128877837,2.89744,1609.6,1609.5,6.3007]
[1745128878843,1.6548,1609.6,1609.5,7.54342]
[1745128879037,1.6548,1609.6,1609.5,6.3007]
[1745128879347,1.6548,1609.6,1609.5,6.33562]
[1745128879547,1.6548,1609.6,1609.5,8.79612]
[1745128881147,1.6548,1609.6,1609.5,7.98052]
[1745128884549,1.6548,1609.6,1609.5,5.47072]
[1745128885249,2.89744,1609.6,1609.5,4.228]
[1745128885840,2.89744,1609.6,1609.5,2.228]
[1745128887546,2.89744,1609.6,1609.5,3.47072]
[1745128888846,2.89744,1609.6,1609.5,2.228]
[1745128893248,1.24272,1609.5,1609.4,6.01289]
[1745128893461,1.24272,1609.5,1609.4,8.01289]
[1745128894056,1.24272,1609.5,1609.4,6.7701]
[1745128895668,2.11772,1609.5,1609.4,6.7701]
[1745128896148,1.24272,1609.5,1609.4,8.01289]
[1745128896956,2.97062,1609.5,1609.4,8.01289]
[1745128898258,1.7279,1609.5,1609.4,8.01289]
[1745128904261,2.05226,1609.6,1609.4,8.01289]
[1745128904466,3.77256,1609.6,1609.4,8.01289]
[1745128905061,1.7203,1609.5,1609.4,8.01289]
[1745128906166,1.7203,1609.5,1609.4,5.78489]
[1745128906560,0.8096,1609.6,1609.5,1.24272]
[1745128906761,2.05224,1609.6,1609.5,2.86672]
[1745128906965,5.793,1609.7,1609.6,1.24264]
[1745128907158,4.10957911,1609.8,1609.7,1.24256]
[1745128907467,4.10957911,1609.8,1609.7,3.24256]
[1745128907669,7.05255911,1609.8,1609.7,2.0]
[1745128908066,5.81007911,1609.8,1609.7,3.24256]
[1745128908260,7.05255911,1609.8,1609.7,4.228]
[1745128909067,5.81007911,1609.8,1609.7,5.47056]
[1745128909368,1.7005,1609.8,1609.7,4.228]
[1745128910468,1.7005,1609.8,1609.7,5.47056]
[1745128913662,1.7005,1609.8,1609.7,7.19856]
[1745128914469,5.77397911,1609.9,1609.8,1.24248]
[1745128914668,7.49657911,1609.9,1609.8,3.80138]
[1745128916263,6.63237911,1609.9,1609.8,3.80138]
[1745128919373,4.90977911,1609.9,1609.8,3.80138]
[1745128919763,4.90977911,1609.9,1609.8,1.24248]
[1745128919963,6.64557911,1609.9,1609.8,2.07368]
[1745128920164,6.64557911,1609.9,1609.8,3.68958]
[1745128923575,7.88798911,1609.9,1609.8,3.68958]
[1745128923776,6.64557911,1609.9,1609.8,3.68958]
[1745128925071,6.64557911,1609.9,1609.8,5.68958]
[1745128925476,2.536,1609.9,1609.8,5.68958]
[1745128942098,10.27394778,1610.1,1610.0,1.24233]
[1745128942797,10.27394778,1610.1,1610.0,3.73603]
[1745128943199,10.27394778,1610.1,1610.0,7.96403]
[1745128946708,2.3885,1610.2,1610.1,1.24225]
[1745128947008,2.3885,1610.2,1610.1,2.93945]
[1745128951404,0.7967,1610.2,1610.1,2.93945]
[1745128953313,13.75407911,1610.3,1610.2,1.24218]
[1745128953502,13.75407911,1610.3,1610.2,3.72958]
[1745128954112,13.75407911,1610.3,1610.2,5.95758]
[1745128956914,10.54627911,1610.3,1610.2,5.95758]
[1745128961521,6.59627911,1610.3,1610.2,7.95758]
[1745128963928,2.4867,1610.3,1610.2,7.95758]
[1745128965325,0.8298,1610.3,1610.2,7.95758]
[1745128968916,6.69967911,1610.4,1610.3,1.2421]
[1745128969122,4.96887911,1610.4,1610.3,4.8806]
[1745128970426,4.10957911,1610.4,1610.3,4.8806]
[1745128970827,4.10957911,1610.4,1610.3,8.0884]
[1745128972130,0.05803,1610.5,1610.4,1.24202]
[1745128972319,0.05803,1610.5,1610.4,3.77372]
[1745128972824,4.10957911,1610.6,1610.5,1.24194]
[1745128973026,4.10957911,1610.6,1610.5,8.90704]
[1745128974137,4.10957911,1610.6,1610.5,11.13504]
[1745128974634,4.10957911,1610.6,1610.5,16.13504]
[1745128974832,6.16436867,1610.7,1610.6,1.24187]
[1745128975029,6.16436867,1610.7,1610.6,5.72587]
[1745128975632,6.16436867,1610.7,1610.6,11.57787]
[1745128975931,6.16436867,1610.7,1610.6,20.51087]
[1745128976122,6.96966867,1611.0,1610.9,3.24164]
[1745128976530,6.16436867,1611.0,1610.9,6.44944]
[1745128976927,6.16436867,1611.0,1610.9,8.88634]
[1745128977138,6.16436867,1611.0,1610.9,11.11434]
[1745128980121,6.16436867,1611.0,1610.9,7.90654]
[1745128980324,6.16436867,1611.0,1610.9,11.11434]
[1745128980634,6.16436867,1611.0,1610.9,16.96634]
[1745128981239,9.92135823,1611.1,1611.0,1.24156]
[1745128981533,1.7022,1611.1,1611.0,4.93706]
[1745128982140,2.91222,1611.3,1611.1,1.24143]
[1745128982339,3.33679,1611.3,1611.2,1.24141]
[1745128983230,5.56479,1611.3,1611.2,1.24141]
[1745128984628,5.56479,1611.3,1611.2,3.24141]
[1745128984836,5.56479,1611.3,1611.2,4.84511]
[1745128985236,3.33679,1611.3,1611.2,4.84511]
[1745128985741,1.67089,1611.3,1611.2,4.84511]
[1745128985939,1.67089,1611.3,1611.2,5.64091]
[1745128986841,1.67089,1611.3,1611.2,4.84511]
[1745128989149,1.5915,1611.4,1611.3,1.24133]
[1745128989442,1.5915,1611.4,1611.3,4.82533]
[1745128989634,1.6846,1611.5,1611.4,1.24125]
[1745128989835,1.6846,1611.5,1611.4,5.68265]
[1745128990038,0.8321,1611.5,1611.4,6.52465]
[1745128990639,2.5019,1611.6,1611.5,1.24117]
[1745128990944,2.5019,1611.6,1611.5,8.15527]
[1745128991439,0.838,1611.7,1611.6,1.2411]
[1745128991634,0.838,1611.7,1611.6,4.9474]
[1745128992041,2.4843,1611.7,1611.6,4.9474]
[1745128992546,0.838,1611.7,1611.6,4.9474]
[1745128993452,1.6463,1611.8,1611.7,1.24102]
[1745128993638,1.6463,1611.8,1611.7,5.81482]
[1745128993835,1.6463,1611.8,1611.7,9.02262]
[1745128994239,3.8743,1611.8,1611.7,9.02262]
[1745128995846,3.8743,1611.8,1611.7,8.18672]
[1745128997345,5.11524,1611.8,1611.7,2.0]
[1745128997650,5.11524,1611.8,1611.5,3.2078]
[1745128997651,1.24123,1611.5,1611.3,10.30113]
[1745128997840,3.2895,1611.4,1611.1,6.15926]
[1745128998034,2.83985,1611.3,1611.2,2.0]
[1745128998240,2.83985,1611.3,1611.1,3.2078]
[1745128998441,1.5985,1611.2,1611.1,6.44928]
[1745128998744,1.5985,1611.2,1611.1,3.2078]
[1745129000045,1.24154,1611.1,1610.9,3.2078]
[1745129000247,3.207,1611.0,1610.9,6.44944]
[1745129000439,3.207,1611.0,1610.9,5.2078]
[1745129000639,5.4358,1611.2,1610.9,5.2078]
[1745129000840,12.20486,1611.2,1611.0,2.0]
[1745129001038,1.5986,1611.1,1611.0,2.0]
[1745129001241,1.5986,1611.1,1611.0,4.228]
[1745129002146,5.06808,1611.1,1611.0,2.0]
[1745129002447,5.06813,1611.1,1610.9,3.2078]
[1745129002649,1.6417,1611.0,1610.9,3.2078]
[1745129003050,1.6417,1611.0,1610.9,4.44944]
[1745129007350,3.929,1611.2,1611.0,1.2415]
[1745129007552,5.5958,1611.2,1611.0,2.9524]
[1745129007852,1.6668,1611.2,1611.1,1.24148]
[1745129008040,1.6668,1611.2,1611.1,2.95238]
[1745129008548,0.808,1611.3,1611.2,3.24141]
[1745129008742,0.808,1611.3,1611.2,5.83071]
[1745129009153,5.6343,1611.4,1611.3,1.24133]
[1745129009344,5.6343,1611.4,1611.3,2.97663]
[1745129011153,0.8195,1611.5,1611.4,1.24125]
[1745129011342,2.5407,1611.5,1611.4,2.94195]
[1745129011954,2.5407,1611.5,1611.4,4.94195]
[1745129012153,0.8782,1611.6,1611.5,1.24117]
[1745129012353,2.5326,1611.7,1611.6,1.2411]
[1745129013158,4.7606,1611.7,1611.6,2.9418]
[1745129013446,4.7606,1611.7,1611.6,4.9418]
[1745129013650,2.228,1611.7,1611.6,4.9418]
[1745129014244,0.8027,1611.8,1611.7,1.24102]
[1745129014451,0.8027,1611.8,1611.7,2.96762]
[1745129014752,2.5306,1611.8,1611.7,2.96762]
[1745129015145,4.7586,1611.8,1611.7,2.96762]
[1745129015654,2.228,1611.8,1611.7,2.96762]
[1745129015954,2.228,1611.8,1611.7,8.17542]
[1745129016157,2.6075,1612.0,1611.9,1.24087]
[1745129016460,2.6075,1612.0,1611.9,3.24087]
[1745129016852,3.84829,1612.0,1611.9,2.0]
[1745129017254,6.07629,1612.0,1611.9,2.0]
[1745129018256,6.07629,1612.0,1611.8,2.96754]
[1745129018561,1.6148,1611.9,1611.8,1.7266]
[1745129019056,1.6148,1611.9,1611.8,2.96754]
[1745129019258,3.8428,1611.9,1611.8,2.96754]
[1745129020165,3.8428,1611.9,1611.8,1.24094]
[1745129020763,5.08367,1611.9,1611.7,1.24096]
[1745129020965,2.5929,1611.8,1611.7,3.24096]
[1745129022261,4.8209,1611.8,1611.7,3.24096]
[1745129026049,4.8209,1611.8,1611.7,4.92926]
[1745129026250,2.5929,1611.8,1611.7,4.92926]
[1745129026666,0.8796,1612.0,1611.8,1.24088]
[1745129026956,3.4035,1612.0,1611.8,2.92158]
[1745129027146,6.87229,1612.0,1611.8,2.92158]
[1745129028062,6.87229,1612.0,1611.9,1.6807]
[1745129028358,6.87229,1612.0,1611.9,2.92157]
[1745129028556,5.6315,1612.0,1611.9,2.92157]
[1745129029058,6.87229,1612.0,1611.9,1.6807]
[1745129029454,6.87229,1612.0,1611.8,1.2409]
[1745129029656,1.7025,1611.9,1611.8,1.2409]
[1745129030362,3.9305,1611.9,1611.8,1.2409]
[1745129032761,3.9305,1611.9,1611.7,1.6807]
[1745129032762,5.17141,1611.9,1611.7,1.6807]
[1745129032963,3.9305,1611.9,1611.8,1.24094]
[1745129035062,3.9305,1611.9,1611.7,3.6807]
[1745129035264,5.17139,1611.9,1611.7,2.92166]
[1745129035463,3.9305,1611.9,1611.8,1.24094]
[1745129035965,5.17137,1611.9,1611.8,1.24094]
[1745129037565,3.9305,1611.9,1611.8,1.24094]
[1745129039468,5.17141,1611.9,1611.7,4.92165]
[1745129039763,5.17141,1611.9,1611.8,1.24094]
[1745129040367,3.9305,1611.9,1611.7,1.6807]
[1745129040567,1.7241,1611.8,1611.7,2.92171]
[1745129040869,1.7241,1611.8,1611.7,2.92172]
[1745129041067,2.96504,1611.8,1611.7,1.6807]
[1745129041264,1.2411,1611.6,1611.4,3.2078]
[1745129041465,4.62246,1611.7,1611.5,2.0]
[1745129041667,1.7241,1611.6,1611.5,2.0]
[1745129041969,2.9652,1611.6,1611.5,2.0]
[1745129042264,3.9521,1611.6,1611.5,3.24117]
[1745129042565,3.9521,1611.6,1611.5,1.24117]
[1745129043573,3.9521,1611.6,1611.5,2.93457]
[1745129043765,3.9521,1611.6,1611.5,3.79357]
[1745129045057,1.7241,1611.6,1611.5,3.79357]
[1745129047165,3.9521,1611.6,1611.5,3.79357]
[1745129049262,1.7241,1611.6,1611.5,3.79357]
[1745129050172,3.9521,1611.6,1611.5,3.79357]
[1745129050372,2.228,1611.6,1611.5,3.79357]
[1745129051270,3.2611,1611.7,1611.6,1.2411]
[1745129051469,3.2611,1611.7,1611.6,2.8743]
[1745129052171,5.4891,1611.7,1611.6,2.8743]
[1745129052774,2.228,1611.7,1611.6,2.8743]
[1745129053073,2.228,1611.7,1611.6,5.7506]
[1745129053379,7.1618,1611.8,1611.7,1.24102]
[1745129053566,7.1618,1611.8,1611.7,2.87422]
[1745129053567,3.954,1611.8,1611.7,2.87422]
[1745129054373,19.43086867,1611.9,1611.8,1.24094]
[1745129054573,19.43086867,1611.9,1611.8,3.68594]
[1745129054964,16.87626867,1611.9,1611.8,3.68594]